bitfinex/quotes_ETHUSD_20260102
["timestamp","ask_amount","ask_price","bid_price","bid_amount"]
[1767349061630,1.08406977,3067.4,3066.4,4.33833028]
[1767349061833,0.00100097,3067.6,3066.4,4.33833028]
[1767349062630,0.00100097,3067.6,3066.6,4.33833028]
[1767349062926,0.00100097,3067.6,3066.7,0.855]
[1767349062927,4.75172524,3067.6,3066.7,0.855]
[1767349063237,0.43297599,3067.6,3066.8,4.33833028]
[1767349063399,0.00100097,3067.6,3066.8,4.33833028]
[1767349063737,0.00100097,3067.6,3066.9,6.52124294]
[1767349063899,4.15391087,3068.0,3066.9,6.52124294]
[1767349064101,4.15291184,3068.0,3067.0,4.33833028]
[1767349064332,0.41529118,3067.9,3067.0,4.33833028]
[1767349065228,4.73404043,3067.9,3067.1,0.855]
[1767349065435,4.73404043,3067.9,3067.2,0.854]
[1767349065955,4.31874925,3067.8,3066.8,3.26066533]
[1767349066157,4.31874925,3067.8,3067.1,3.26033677]
[1767349066457,4.31874925,3067.8,3067.0,3.26046468]
[1767349066657,4.79215329,3067.8,3066.8,3.2606982]
[1767349066860,4.79215329,3067.8,3066.9,0.854]
[1767349067163,4.79215329,3067.8,3066.9,3.2605976]
[1767349067361,4.79215329,3067.8,3067.0,3.26050342]
[1767349067557,4.79215329,3067.8,3066.9,3.26058919]
[1767349067764,5.16565119,3067.7,3066.9,3.26058919]
[1767349068063,5.16565119,3067.7,3066.8,3.26068021]
[1767349068259,5.16565119,3067.7,3066.7,4.11479622]
[1767349068260,5.16565119,3067.7,3066.7,0.854]
[1767349068468,5.16565119,3067.7,3066.8,0.03260727]
[1767349068632,5.16565119,3067.7,3066.7,0.854]
[1767349068833,4.88265477,3067.6,3066.7,0.854]
[1767349069036,0.56390552,3067.6,3066.7,4.33833028]
[1767349069242,4.31874925,3067.7,3066.7,5.22493862]
[1767349070250,4.31874925,3067.7,3066.8,6.52145558]
[1767349070456,4.31874925,3067.7,3066.8,3.26072779]
[1767349070855,4.31874925,3067.7,3066.8,6.52145558]
[1767349071060,4.31874925,3067.7,3066.8,4.43210638]
[1767349071434,4.31874925,3067.7,3066.8,5.28610638]
[1767349071639,4.31874925,3067.7,3066.8,3.26072779]
[1767349072548,4.31874925,3067.7,3066.9,4.37093649]
[1767349072747,4.31874925,3067.7,3066.9,4.33833028]
[1767349074469,4.31874925,3067.7,3067.0,3.26051516]
[1767349075976,0.002,3067.9,3066.8,0.854]
[1767349076181,0.002,3067.8,3067.0,4.70481627]
[1767349076380,4.3738823,3067.8,3067.0,4.70481627]
[1767349076582,4.3738823,3067.8,3067.0,7.96524717]
[1767349077357,4.3738823,3067.8,3067.0,3.2604309]
[1767349078096,4.3738823,3067.8,3066.9,3.26055656]
[1767349078273,5.1374208,3067.8,3066.9,3.26055656]
[1767349078599,5.1374208,3067.8,3066.8,4.87561627]
[1767349078806,5.1374208,3067.8,3066.8,8.81953043]
[1767349078959,5.1374208,3067.8,3066.8,12.08025822]
[1767349079315,5.1374208,3067.8,3066.8,4.11471416]
[1767349079509,4.3718823,3068.6,3066.9,4.73742248]
[1767349079804,4.3718823,3068.6,3067.1,4.70481627]
[1767349080106,4.3718823,3068.6,3067.2,0.854]
[1767349080314,4.3718823,3068.4,3067.2,0.854]
[1767349080606,4.3718823,3068.4,3067.3,3.26019626]
[1767349080977,4.3718823,3068.3,3067.3,3.26019626]
[1767349081289,4.3718823,3068.3,3067.4,4.70481627]
[1767349081674,4.3718823,3068.3,3067.2,0.854]
[1767349081675,4.3718823,3068.3,3067.2,4.11426872]
[1767349081877,4.3718823,3068.1,3067.3,0.854]
[1767349082075,4.3718823,3068.1,3066.6,4.70481627]
[1767349082398,4.3718823,3067.9,3066.8,3.26070064]
[1767349082570,4.3718823,3067.9,3066.7,5.55881627]
[1767349082775,4.3718823,3067.9,3066.9,4.70481627]
[1767349082981,4.80907053,3067.8,3066.9,4.70481627]
[1767349083201,4.3718823,3067.8,3066.9,4.73742248]
[1767349083372,4.3718823,3067.8,3066.7,3.26082447]
[1767349083576,4.3718823,3067.8,3066.7,4.11482447]
[1767349084011,4.3718823,3067.8,3066.8,0.854]
[1767349084306,4.3718823,3067.8,3066.8,0.001]
[1767349084476,4.3718823,3067.6,3066.8,0.001]
[1767349087133,4.3718823,3067.5,3066.5,3.2619919]
[1767349087633,4.3718823,3067.5,3066.5,0.001]
[1767349087839,4.3718823,3067.5,3066.5,3.26201649]
[1767349089900,4.3718823,3067.4,3066.5,0.001]
[1767349090099,5.1350603,3067.4,3066.5,0.001]
[1767349091241,4.3718823,3067.2,3066.2,4.70481627]
[1767349091436,5.2268823,3067.2,3066.2,4.70481627]
[1767349091613,4.3718823,3067.0,3066.2,4.70481627]
[1767349091812,4.3718823,3067.0,3066.2,7.9661466]
[1767349092131,4.3718823,3067.0,3066.2,7.96617935]
[1767349092640,4.3718823,3067.0,3066.2,4.70481627]
[1767349092807,4.3718823,3067.0,3065.6,4.70481627]
[1767349093016,4.3718823,3066.8,3066.0,4.70481627]
[1767349093236,0.855,3067.2,3065.9,3.26167691]
[1767349093237,5.2268823,3067.2,3066.5,4.70581627]
[1767349093549,0.002,3067.6,3066.7,4.70481627]
[1767349093838,0.002,3067.8,3066.9,4.70481627]
[1767349094042,0.002,3067.8,3067.1,4.70481627]
[1767349094346,0.002,3068.8,3067.0,0.47374235]
[1767349094535,4.3718823,3068.6,3067.1,4.70481627]
[1767349094716,4.3718823,3068.6,3067.3,4.70481627]
[1767349095463,4.3718823,3068.4,3067.4,4.70481627]
[1767349095679,4.3718823,3067.9,3066.5,4.70581627]
[1767349095951,0.06906532,3068.0,3066.1,3.2613951]
[1767349095952,4.44094762,3067.4,3066.1,3.2613951]
[1767349096128,4.3718823,3067.2,3065.8,4.70481627]
[1767349096936,4.3718823,3067.2,3065.9,4.70481627]
[1767349097338,4.3718823,3067.1,3065.9,5.55881627]
[1767349097540,0.06906532,3067.6,3065.9,5.55881627]
[1767349097541,4.3718823,3067.5,3065.9,7.37736996]
[1767349097747,7.63145451,3067.9,3066.0,5.47516905]
[1767349097923,4.3718823,3067.8,3066.0,5.47516905]
[1767349098125,4.3718823,3067.8,3066.1,4.70481627]
[1767349098318,4.3718823,3067.8,3066.3,4.70481627]
[1767349098532,1.08910267,3067.7,3066.5,4.70481627]
[1767349099051,5.46098497,3067.7,3066.6,4.70481627]
[1767349099552,4.3718823,3067.6,3066.6,4.70481627]
[1767349099722,4.3718823,3067.6,3066.0,0.737737]
[1767349099918,4.3718823,3067.6,3065.7,0.47058163]
[1767349099919,4.3718823,3067.6,3066.4,4.70481627]
[1767349100127,4.3718823,3067.6,3066.6,4.70481627]
[1767349101233,0.06906532,3068.1,3066.6,4.70481627]
[1767349101234,3.25943324,3068.1,3066.6,4.70481627]
[1767349101434,0.002,3067.8,3066.8,4.70481627]
[1767349101633,0.002,3067.8,3066.9,0.854]
[1767349101634,4.3738823,3067.8,3066.9,0.854]
[1767349101857,4.3738823,3067.8,3066.8,4.70481627]
[1767349101858,4.3738823,3067.8,3066.8,5.55881627]
[1767349102262,4.3738823,3067.8,3066.8,4.70481627]
[1767349102572,4.3738823,3067.8,3066.7,4.70481627]
[1767349102770,4.80927053,3067.7,3066.7,4.70481627]
[1767349103075,4.3718823,3067.6,3066.3,4.70481627]
[1767349103274,4.3718823,3067.6,3066.4,3.26110195]
[1767349103479,4.3718823,3067.6,3066.5,4.70481627]
[1767349103710,3.2599837,3067.5,3066.5,4.70481627]
[1767349103857,0.32599837,3067.4,3066.6,4.73742567]
[1767349104054,4.3718823,3067.5,3066.6,4.73742567]
[1767349104258,4.3718823,3067.5,3066.5,3.26103146]
[1767349104259,0.00100097,3067.8,3066.8,4.70481627]
[1767349104485,0.00100097,3067.8,3066.9,4.70481627]
[1767349104697,4.37288327,3067.8,3066.9,4.70481627]
[1767349105948,4.37288327,3067.8,3066.9,7.96542323]
[1767349106148,5.22162847,3067.8,3066.9,7.96542323]
[1767349106367,5.22162847,3067.8,3066.9,4.70481627]
[1767349106776,4.88714378,3067.7,3066.7,3.26076823]
[1767349106978,4.88714378,3067.7,3066.7,3.26083017]
[1767349107180,4.88714378,3067.7,3066.8,3.26067686]
[1767349107479,4.88714378,3067.5,3066.7,4.70221623]
[1767349107677,4.88714378,3067.5,3066.6,3.26087963]
[1767349107976,4.88714378,3067.5,3066.4,8.81728533]
[1767349107977,4.88714378,3067.5,3066.5,3.26104679]
[1767349108179,4.88714378,3067.4,3066.4,4.70221623]
[1767349108579,4.88714378,3067.4,3066.2,3.26131143]
[1767349108783,4.88714378,3067.2,3066.1,4.70221623]
[1767349109080,4.88714378,3067.2,3066.0,3.26249832]
[1767349109279,4.88714378,3067.2,3066.0,0.001]
[1767349109479,4.88714378,3067.2,3066.2,4.70221623]
[1767349109679,4.88814475,3067.8,3066.6,4.70221623]
[1767349109880,5.22112568,3067.8,3066.9,4.70221623]
[1767349110653,4.88714378,3067.7,3066.9,4.70221623]
[1767349111585,0.3339819,3067.8,3066.9,4.70221623]
[1767349111792,0.00100097,3067.8,3066.9,4.70221623]
[1767349111989,0.00100097,3067.8,3067.0,4.70221623]
[1767349113358,0.855,3068.1,3066.9,9.78181142]
[1767349113562,0.855,3068.1,3067.0,4.70221623]
[1767349114198,5.74214378,3068.1,3067.2,4.70221623]
[1767349114492,5.74214378,3068.1,3067.2,5.49847874]
[1767349114693,0.855,3068.1,3067.2,5.49847874]
[1767349114859,4.88714378,3068.4,3067.2,5.49847874]
[1767349115061,8.14623056,3068.4,3067.2,5.49847874]
[1767349115363,4.88714378,3068.3,3067.2,5.49847874]
[1767349115564,6.11315956,3068.3,3067.2,5.49847874]
[1767349116260,6.11315956,3068.3,3067.4,4.70221623]
[1767349117802,0.002,3067.8,3067.4,4.70221623]
[1767349118524,0.002,3067.8,3067.5,4.70221623]
[1767349119131,6.11315956,3068.3,3067.5,4.70221623]
[1767349119326,0.93721963,3068.2,3067.5,4.70221623]
[1767349121638,4.88714378,3068.7,3067.6,4.70221623]
[1767349123623,4.88714378,3068.6,3067.6,3.25983116]
[1767349123817,4.88714378,3068.6,3067.6,6.51970858]
[1767349124045,4.88714378,3068.4,3067.6,7.96204739]
[1767349124538,4.88714378,3068.4,3067.7,4.70221623]
[1767349124742,0.002,3068.8,3067.7,4.70221623]
[1767349125542,0.002,3068.8,3067.8,6.5193298]
[1767349125744,0.002,3068.8,3068.0,4.70221623]
[1767349125948,4.88914378,3068.8,3068.0,4.70221623]
[1767349126637,0.002,3068.4,3068.0,4.70221623]
[1767349127648,0.002,3068.4,3068.1,3.25934617]
[1767349127951,4.88914378,3068.8,3068.1,3.25934617]
[1767349128256,0.002,3068.8,3068.2,4.70221623]
[1767349128467,0.002,3068.9,3068.2,4.70221623]
[1767349128645,4.88914378,3068.9,3068.2,4.70221623]
[1767349129240,0.002,3068.9,3068.2,4.70221623]
[1767349129557,0.002,3068.9,3068.3,4.70221623]
[1767349131541,4.88914378,3068.9,3068.3,4.70221623]
[1767349132049,4.88914378,3068.9,3068.2,4.45305378]
[1767349132252,4.88914378,3068.9,3068.1,0.71707209]
[1767349132551,5.74214378,3068.8,3067.7,4.70221623]
[1767349132929,4.88714378,3068.6,3067.4,4.70321623]
[1767349133142,0.855,3068.8,3067.4,4.70321623]
[1767349133143,4.88714378,3068.4,3067.4,4.70321623]
[1767349134153,8.14618851,3068.4,3067.4,7.96328912]
[1767349134340,4.88714378,3068.3,3067.4,7.96328912]
[1767349135016,4.88714378,3068.3,3067.5,4.70221623]
[1767349135218,4.88714378,3068.3,3067.4,0.001]
[1767349135424,4.88714378,3068.1,3067.4,0.001]
[1767349136450,0.49562091,3068.5,3067.5,5.0189869]
[1767349136669,5.06810757,3068.7,3067.5,5.0189869]
[1767349138455,5.06810757,3068.7,3067.7,5.0189869]
[1767349138953,5.06810757,3068.6,3067.7,5.0189869]
[1767349140358,0.002,3068.9,3067.8,5.0189869]
[1767349140558,0.002,3068.9,3068.0,5.0189869]
[1767349141423,0.855,3069.4,3068.0,5.0189869]
[1767349141424,5.06810757,3069.3,3068.0,5.8729869]
[1767349141629,0.003,3069.6,3068.5,5.0189869]
[1767349141827,5.07110757,3069.6,3068.5,5.0189869]
[1767349142157,5.06810757,3069.4,3068.5,5.0189869]
[1767349142336,5.06810757,3069.2,3068.2,5.0189869]
[1767349142536,0.855,3069.1,3068.2,5.0189869]
[1767349142746,6.43021833,3069.5,3068.2,5.0189869]
[1767349142944,5.06810757,3069.4,3068.2,5.0189869]
[1767349143159,5.07010757,3068.9,3068.2,5.0189869]
[1767349144236,5.06810757,3069.4,3068.4,5.0189869]
[1767349144434,5.06810757,3069.2,3068.1,8.27828696]
[1767349144641,5.92310757,3069.2,3068.2,3.259207]
[1767349144839,5.92310757,3069.2,3068.3,3.25911266]
[1767349145041,5.66041833,3069.1,3068.3,8.27809956]
[1767349145761,5.66041833,3069.1,3068.3,5.0189869]
[1767349150666,5.66041833,3069.1,3068.1,3.25930679]
[1767349150970,5.66041833,3069.1,3068.3,0.001]
[1767349151257,5.66241833,3069.1,3068.3,0.001]
[1767349151477,5.06810757,3068.9,3068.3,0.001]
[1767349152263,0.002,3069.1,3068.4,5.0189869]
[1767349152441,5.07010757,3069.1,3068.4,5.0189869]
[1767349152953,5.06810757,3069.0,3068.3,0.001]
[1767349153486,5.98644869,3069.0,3068.3,0.001]
[1767349154348,0.002,3069.1,3068.4,5.0189869]
[1767349154666,0.002,3069.1,3068.5,3.258906]
[1767349154832,0.002,3069.1,3068.6,5.0189869]
[1767349155569,0.858,3069.6,3068.6,5.0189869]
[1767349155861,0.858,3069.6,3068.8,5.0189869]
[1767349156452,5.92610757,3069.6,3068.8,5.0189869]
[1767349156857,5.92610757,3069.6,3068.8,8.27749641]
[1767349157248,5.92610757,3069.6,3068.9,5.0189869]
[1767349158044,5.06810757,3069.5,3068.7,4.41238601]
[1767349158247,5.06810757,3069.5,3068.7,1.15368142]
[1767349158552,5.06810757,3069.5,3068.3,3.26009664]
[1767349158553,5.06810757,3069.5,3068.6,8.27780022]
[1767349158753,5.06810757,3069.5,3068.6,5.0189869]
[1767349158959,5.06810757,3069.5,3068.7,5.0189869]
[1767349159884,0.86,3069.6,3068.7,5.0189869]
[1767349160340,5.92810757,3069.6,3068.7,5.0189869]
[1767349160543,5.92810757,3069.6,3068.7,6.17265345]
[1767349161167,5.92810757,3069.6,3068.7,9.43129579]
[1767349161565,5.92810757,3069.6,3068.7,4.41230889]
[1767349161899,5.92810757,3069.6,3068.8,5.0189869]
[1767349162180,5.06810757,3069.5,3068.8,5.0189869]
[1767349162361,5.06810757,3069.3,3068.4,3.2590033]
[1767349162562,5.06810757,3069.3,3068.7,5.0189869]
[1767349162869,5.06810757,3069.3,3068.5,5.0189869]
[1767349165272,5.06810757,3069.3,3068.5,8.27789155]
[1767349165777,5.06810757,3069.3,3068.5,5.0189869]
[1767349166173,4.80622742,3069.1,3068.5,5.0189869]
[1767349166384,4.80622742,3068.9,3067.7,4.7812633]
[1767349167175,4.80622742,3068.7,3067.6,0.001]
[1767349167392,4.80622742,3068.7,3067.7,4.7812633]
[1767349167747,6.51763018,3068.6,3067.7,4.7812633]
[1767349167985,5.66122742,3068.5,3067.7,4.7812633]
[1767349168286,4.80622742,3068.3,3067.7,4.7812633]
[1767349168474,4.80622742,3068.3,3067.6,0.001]
[1767349169768,3.2592316,3068.3,3067.6,0.001]
[1767349169980,4.80622742,3068.2,3067.4,0.001]
[1767349170347,4.80622742,3068.2,3067.0,3.26144544]
[1767349170550,4.80622742,3068.0,3067.0,4.7822633]
[1767349170755,4.80622742,3067.8,3067.0,4.7822633]
[1767349170989,4.80622742,3067.8,3067.3,4.7812633]
[1767349173772,0.855,3067.9,3067.3,4.7812633]
[1767349174454,0.855,3067.9,3067.4,4.7812633]
[1767349175080,4.80622742,3068.2,3067.5,4.7812633]
[1767349175280,4.80622742,3068.1,3067.1,5.6352633]
[1767349175480,4.80622742,3068.1,3067.1,4.7812633]
[1767349175683,4.87529274,3068.1,3067.0,0.001]
[1767349175986,4.80622742,3067.8,3066.6,3.26088767]
[1767349176279,0.06906532,3067.9,3066.5,4.7822633]
[1767349176280,4.80622742,3067.6,3066.5,4.7822633]
[1767349176595,4.80622742,3067.4,3066.5,4.7822633]
[1767349176775,4.80622742,3067.4,3066.5,0.001]
[1767349177286,4.87529274,3067.4,3066.2,0.854]
[1767349177455,4.87529274,3067.4,3066.1,4.7822633]
[1767349177658,4.80622742,3067.2,3066.1,5.5867394]
[1767349177959,1.13952601,3067.3,3066.1,5.5867394]
[1767349177960,4.80622742,3067.0,3066.1,5.5867394]
[1767349178576,5.66122742,3067.5,3066.3,4.7812633]
[1767349178893,4.80622742,3067.4,3066.3,4.7812633]
[1767349179058,4.80622742,3067.4,3066.1,0.8054761]
[1767349179262,4.80622742,3067.2,3066.2,4.7812633]
[1767349179457,4.80622742,3067.2,3066.1,0.8054761]
[1767349179987,4.80622742,3067.2,3066.1,0.001]
[1767349180567,4.80622742,3067.0,3066.1,0.001]
[1767349180773,4.80622742,3066.8,3066.1,0.001]
[1767349182390,4.80622742,3066.8,3066.1,4.7812633]
[1767349182690,4.80622742,3066.7,3066.0,0.001]
[1767349182990,3.26073961,3066.8,3065.8,4.7822633]
[1767349182991,4.80622742,3066.5,3065.8,0.001]
[1767349183697,4.80622742,3065.5,3064.4,0.001]
[1767349183898,4.80622742,3065.2,3064.1,4.7822633]
[1767349184072,4.80622742,3065.5,3064.2,4.7812633]
[1767349184272,4.80622742,3065.3,3064.3,0.47822633]
[1767349184590,4.80622742,3065.3,3064.2,3.26349454]
[1767349184970,4.80622742,3065.3,3064.8,0.001]
[1767349186161,0.48062274,3065.4,3064.9,4.7812633]
[1767349186367,4.80622742,3065.8,3064.9,4.76100137]
[1767349186673,4.80622742,3065.8,3065.0,4.7812633]
[1767349186875,0.56129241,3066.4,3065.2,4.7812633]
[1767349187198,4.80622742,3066.3,3065.2,4.7812633]
[1767349187492,4.80622742,3066.3,3065.0,4.7812633]
[1767349188888,4.80622742,3066.1,3065.0,4.7812633]
[1767349189585,4.80622742,3066.1,3065.0,8.04389337]
[1767349189792,4.80622742,3065.9,3065.0,8.04389337]
[1767349191381,4.80622742,3065.9,3065.0,4.7812633]
[1767349191805,4.80622742,3065.9,3065.0,4.7822633]
[1767349192297,4.80622742,3065.8,3065.0,0.001]
[1767349192504,4.80622742,3065.6,3064.8,0.001]
[1767349193094,8.06795537,3065.9,3064.8,4.7822633]
[1767349193399,4.80622742,3065.8,3065.0,4.7812633]
[1767349193598,4.80622742,3065.8,3064.8,3.26381071]
[1767349193799,4.80622742,3065.8,3064.9,3.26269027]
[1767349194100,4.80622742,3065.9,3065.1,4.7812633]
[1767349195473,4.80622742,3066.3,3065.2,5.6362633]
[1767349197091,4.80622742,3066.3,3064.4,5.22589637]
[1767349197092,4.78296172,3066.1,3065.0,3.26259325]
[1767349197281,4.78296172,3066.1,3065.1,5.00286576]
[1767349197482,4.78296172,3066.0,3065.1,5.00286576]
[1767349198015,4.12427171,3066.2,3065.2,5.00286576]
[1767349198528,8.91722172,3066.2,3065.2,5.00286576]
[1767349198824,0.97732217,3066.1,3065.2,5.00286576]
[1767349199008,5.78014366,3066.1,3065.2,5.00286576]
[1767349199308,8.92711001,3066.2,3065.2,5.00286576]
[1767349199474,4.80282149,3066.1,3065.2,5.00286576]
[1767349199675,4.80282149,3066.1,3065.3,5.00286576]
[1767349199925,4.80282149,3066.5,3065.3,5.00286576]
[1767349200133,3.26095135,3066.6,3065.3,5.00286576]
[1767349200282,5.13868995,3066.5,3065.5,5.00286576]
[1767349200482,0.06906532,3066.3,3065.1,0.001]
[1767349200780,4.81159482,3065.9,3064.5,5.85786576]
[1767349201205,5.67732322,3066.2,3064.6,5.00286576]
[1767349201417,5.67732322,3066.2,3064.7,5.00286576]
[1767349201735,4.82132322,3066.0,3064.8,5.00286576]
[1767349202611,4.82132322,3066.0,3064.5,9.1210131]
[1767349202933,4.83091485,3065.8,3064.5,5.00286576]
[1767349203077,4.84038691,3065.6,3064.5,5.00286576]
[1767349203493,4.84038691,3065.4,3064.5,5.00286576]
[1767349203692,4.84038691,3065.2,3064.5,8.26602413]
[1767349203923,4.84038691,3065.7,3064.6,5.00286576]
[1767349204099,4.84977251,3066.0,3064.8,5.00286576]
[1767349205519,4.84977251,3066.0,3064.9,6.52549838]
[1767349205717,4.84977251,3066.0,3065.0,5.00286576]
[1767349205894,5.39221365,3066.0,3065.0,6.15570217]
[1767349206219,4.8682391,3065.9,3065.0,5.00286576]
[1767349206413,4.8702391,3065.9,3065.0,5.00286576]
[1767349207523,4.8702391,3065.9,3064.7,8.26580321]
[1767349207718,4.87728811,3065.7,3064.7,5.00286576]
[1767349208023,4.87728811,3065.5,3064.5,0.001]
[1767349208194,4.87728811,3065.5,3064.5,5.00386576]
[1767349209027,4.87728811,3065.5,3064.6,5.00286576]
[1767349209694,4.89524247,3065.4,3064.5,0.001]
[1767349209894,4.89524247,3065.2,3064.0,8.26752492]
[1767349210492,4.89524247,3065.2,3064.1,5.00386576]
[1767349210691,4.89524247,3065.2,3064.1,8.26745242]
[1767349210897,4.90303413,3065.0,3064.1,5.00386576]
[1767349211112,5.48762541,3064.9,3064.1,5.00386576]
[1767349211909,4.911722,3064.8,3064.1,0.001]
[1767349212528,4.91727076,3064.5,3063.7,0.001]
[1767349212727,4.91627076,3064.3,3063.7,0.001]
[1767349212904,0.57722708,3064.2,3063.7,0.001]
[1767349213104,0.57722708,3064.2,3063.7,5.00386576]
[1767349213709,0.57722708,3064.2,3063.4,5.00386576]
[1767349213710,3.26360105,3064.1,3063.4,5.00386576]
[1767349213906,4.92278906,3064.0,3063.4,0.001]
[1767349214460,3.84075023,3064.2,3063.5,5.00286576]
[1767349214633,0.38407502,3064.1,3063.5,5.00286576]
[1767349214929,5.31527356,3064.1,3063.5,5.00286576]
[1767349215730,0.38407502,3064.1,3063.5,5.00286576]
[1767349215930,8.65586644,3064.1,3063.4,0.001]
[1767349216231,0.92330935,3064.0,3063.4,5.00286779]
[1767349216530,0.856,3063.9,3063.4,5.00286779]
[1767349216911,0.92330935,3064.0,3063.4,5.00286779]
[1767349217113,0.856,3064.0,3063.4,5.00286779]
[1767349217307,11.4661811,3064.2,3063.4,5.00286779]
[1767349217513,12.3221811,3064.2,3063.4,5.00286779]
[1767349218736,9.05861562,3064.2,3063.4,5.00286779]
[1767349219641,0.856,3064.2,3063.4,5.00286779]
[1767349219833,4.93905924,3064.0,3063.4,2.03e-06]
[1767349220140,3.26360105,3064.1,3063.4,2.03e-06]
[1767349220141,4.93905924,3063.8,3063.4,2.03e-06]
[1767349220342,4.93905924,3063.8,3063.2,2.03e-06]
[1767349220839,1.34990592,3063.9,3063.2,5.00286779]
[1767349221139,1.34990592,3063.9,3063.3,5.00286576]
[1767349221343,0.856,3063.9,3063.4,5.00386576]
[1767349222543,4.11984009,3063.9,3063.2,2.03e-06]
[1767349222745,4.07163417,3063.8,3063.2,2.03e-06]
[1767349224027,6.5280543,3063.7,3063.2,2.03e-06]
[1767349224226,4.07670365,3063.6,3063.2,2.03e-06]
[1767349224427,4.07670365,3063.4,3062.9,2.03e-06]
[1767349226247,1.06047579,3063.5,3062.9,4.92393555]
[1767349226549,3.26414438,3063.6,3062.9,4.92393555]
[1767349226739,6.95788479,3063.6,3062.9,4.92393555]
[1767349226952,10.22202917,3063.6,3062.9,4.92393555]
[1767349227141,10.22202917,3063.6,3062.7,0.001]
[1767349227142,3.76556291,3063.5,3062.7,2.03e-06]
[1767349227347,6.52828876,3063.6,3062.7,2.03e-06]
[1767349227348,3.69449759,3063.3,3062.7,2.03e-06]
[1767349227653,0.45504976,3063.2,3062.7,5.27245213]
[1767349227830,0.856,3063.6,3062.7,5.27245213]
[1767349228031,4.55324149,3063.6,3062.7,5.27245213]
[1767349228348,7.81747531,3063.6,3062.7,5.27245213]
[1767349228732,7.81747531,3063.6,3062.9,0.001]
[1767349228932,1.10815092,3063.5,3062.9,0.001]
[1767349229946,3.70262178,3064.1,3063.0,5.2724501]
[1767349230138,4.11989624,3063.9,3063.0,5.2724501]
[1767349230334,4.11985864,3063.9,3063.0,5.2724501]
[1767349231648,7.38371728,3063.9,3063.0,5.2724501]
[1767349231844,4.44360478,3063.8,3063.0,5.2724501]
[1767349232022,4.44360478,3063.8,3062.9,0.001]
[1767349232223,3.70781753,3063.6,3062.7,2.03e-06]
[1767349233438,3.70781753,3063.6,3062.7,5.27245213]
[1767349233653,0.73837173,3063.8,3062.7,5.27245213]
[1767349233840,0.73837173,3063.8,3062.9,5.2724501]
[1767349233841,3.70938496,3063.7,3062.9,5.2724501]
[1767349234243,3.71192297,3063.5,3062.7,2.03e-06]
[1767349234458,3.26413369,3063.6,3062.7,2.03e-06]
[1767349234765,3.71192297,3063.5,3062.7,2.03e-06]
[1767349235242,4.57046422,3063.5,3062.7,2.03e-06]
[1767349235440,0.78345979,3063.4,3062.7,5.27245213]
[1767349235651,4.49792401,3063.4,3062.7,5.27245213]
[1767349235961,0.06906532,3063.3,3062.6,0.001]
[1767349236160,3.26455993,3063.2,3062.6,0.001]
[1767349236464,4.84500676,3063.1,3062.1,5.2734501]
[1767349236649,4.84500676,3062.9,3062.1,5.2734501]
[1767349237156,5.70100676,3062.9,3062.1,5.2734501]
[1767349237545,5.70100676,3062.9,3062.0,0.001]
[1767349237758,4.84500676,3062.8,3062.0,5.2734501]
[1767349238061,0.81095667,3063.0,3062.0,5.2734501]
[1767349238357,0.81095667,3063.0,3062.1,5.2724501]
[1767349238559,4.12071861,3063.1,3062.1,5.2724501]
[1767349238858,4.84500676,3063.4,3062.1,5.2724501]
[1767349239865,4.91407208,3063.4,3062.1,5.2724501]
[1767349240160,4.84500676,3063.2,3062.2,3.26562602]
[1767349240362,4.84500676,3063.2,3062.3,5.2724501]
[1767349240563,4.84500676,3063.2,3062.4,6.12625771]
[1767349242366,4.84500676,3063.2,3062.5,5.2724501]
[1767349243132,3.26439221,3063.4,3062.5,5.2724501]
[1767349243537,8.10939897,3063.4,3062.5,5.2724501]
[1767349244172,4.84500676,3063.3,3062.5,5.2724501]
[1767349244368,4.84500676,3063.1,3062.4,5.2734501]
[1767349244936,4.84500676,3063.1,3062.0,5.2734501]
[1767349245153,4.84500676,3062.9,3062.0,5.2734501]
[1767349247073,3.2649337,3062.9,3062.0,5.2734501]
[1767349247266,4.84500676,3062.8,3062.0,5.2734501]
[1767349247464,3.26455993,3063.2,3062.1,5.2724501]
[1767349247670,4.84500676,3063.1,3062.1,5.2724501]
[1767349249174,4.84500676,3062.9,3062.0,0.001]
[1767349249338,4.84500676,3062.7,3062.0,0.001]
[1767349250373,4.84500676,3062.7,3062.0,5.2734501]
[1767349251011,5.70200676,3062.7,3062.0,0.001]
[1767349251289,5.70200676,3062.7,3061.6,0.001]
[1767349251290,4.84500676,3062.5,3061.6,0.001]
[1767349251448,4.84500676,3062.3,3061.6,0.001]
[1767349251769,5.98945387,3062.4,3061.6,5.2734501]
[1767349252955,5.98945387,3062.4,3061.6,0.001]
[1767349252956,4.84500676,3062.2,3061.6,0.001]
[1767349253294,4.84500676,3062.1,3061.6,0.001]
[1767349253875,0.857,3062.2,3061.6,5.2734501]
[1767349254178,4.12263132,3062.2,3061.6,5.2734501]
[1767349254373,5.34593696,3062.2,3061.6,5.2734501]
[1767349254576,10.19094372,3062.2,3061.6,5.2734501]
[1767349254871,4.84500676,3062.1,3061.6,0.001]
[1767349255077,4.84500676,3062.1,3061.4,0.001]
[1767349255377,4.84500676,3061.9,3061.1,0.001]
[1767349255588,4.84500676,3061.7,3061.1,0.001]
[1767349255892,4.84500676,3061.7,3061.1,5.01060954]
[1767349257282,5.02677039,3061.3,3060.8,2.03e-06]
[1767349257453,7.38944096,3061.7,3060.5,5.00960954]
[1767349257454,12.41621135,3061.7,3060.5,5.00960954]
[1767349257651,1.24162113,3061.6,3060.5,5.45337201]
[1767349257871,6.2227685,3061.6,3060.6,5.45337201]
[1767349258074,4.98114737,3061.6,3060.8,3.26705711]
[1767349258279,6.13043287,3061.8,3060.9,5.41083178]
[1767349258878,6.13043287,3061.8,3061.0,0.001]
[1767349259262,8.53959219,3061.7,3061.0,0.001]
[1767349259463,5.27343287,3061.6,3061.0,0.001]
[1767349259666,5.27343287,3061.4,3060.7,5.41083178]
[1767349259972,5.27343287,3061.4,3060.4,5.41183178]
[1767349260376,0.92606532,3061.3,3060.4,0.001]
[1767349260693,5.34249819,3061.2,3060.4,0.001]
[1767349260876,5.27343287,3061.2,3060.4,0.001]
[1767349261191,5.27343287,3061.0,3060.4,0.001]
[1767349261390,5.27343287,3060.9,3060.1,5.41083178]
[1767349261787,6.13043287,3061.3,3060.2,5.41183178]
[1767349262084,5.34249819,3061.2,3060.2,0.001]
[1767349262866,5.27343287,3060.7,3060.2,0.001]
[1767349263091,5.80768269,3060.7,3060.2,0.001]
[1767349263689,5.80768269,3060.7,3059.9,5.41183178]
[1767349263899,5.27343287,3061.1,3059.9,5.41183178]
[1767349264795,0.857,3061.2,3059.9,5.41183178]
[1767349265002,0.857,3061.2,3060.1,5.41083178]
[1767349265367,5.27343287,3062.0,3060.1,5.41083178]
[1767349265697,0.06906532,3061.9,3060.3,5.41083178]
[1767349265894,0.06906532,3061.9,3060.5,5.41083178]